bitfinex-derivatives/quotes_ETHF0:USTF0_20210705
["timestamp","ask_amount","ask_price","bid_price","bid_amount"]
[1625528466912,4.41054,2215.3,2214.8,2.20527]
[1625528467062,7.22924,2215.3,2214.8,2.20527]
[1625528467164,7.22924,2215.3,2214.9,0.20205929]
[1625528467726,7.22924,2215.3,2214.4,0.20216723]
[1625528467917,7.22924,2215.3,2213.7,0.20158804]
[1625528468266,8.22924,2215.3,2213.7,0.20158804]
[1625528468368,47.4774,2214.8,2213.7,0.20158804]
[1625528468523,49.8752,2214.8,2213.6,0.2017182]
[1625528468938,4.41054,2213.7,2213.6,0.2017182]
[1625528469028,6.90984,2213.7,2213.6,0.2017182]
[1625528469526,6.90984,2213.7,2213.5,9.0]
[1625528469727,6.90984,2213.7,2212.1,1.0]
[1625528469825,7.90984,2213.7,2211.2,5.6654]
[1625528469945,7.90984,2213.7,2212.2,0.20110714]
[1625528470155,7.90984,2213.7,2212.2,39.252]
[1625528470442,6.90984,2213.7,2212.3,0.20110793]
[1625528470540,6.90984,2213.7,2211.8,0.20111143]
[1625528470739,1.0,2213.6,2211.8,0.20111143]
[1625528470840,1.0,2213.6,2212.4,16.4946]
[1625528470941,4.70457,2213.7,2213.4,2.20527]
[1625528471037,4.70457,2213.7,2213.2,2.20527]
[1625528471240,4.70457,2213.7,2211.9,16.335421]
[1625528471441,4.70457,2213.7,2212.0,0.20104194]
[1625528471540,1.0,2213.6,2212.0,0.20104194]
[1625528471639,1.0,2213.6,2211.8,0.20103579]
[1625528471943,1.0,2213.6,2212.1,16.467236]
[1625528472094,1.0,2213.6,2212.2,0.20050625]
[1625528472190,4.70457,2213.7,2212.3,1.15]
[1625528472495,4.70457,2213.7,2212.3,16.386471]
[1625528472695,4.70457,2213.7,2211.7,4.759]
[1625528472796,1.0,2213.6,2211.7,4.759]
[1625528473004,4.50917,2213.0,2212.7,2.20527]
[1625528475003,4.50917,2213.0,2212.9,2.20527]
[1625528476256,4.50917,2213.0,2211.7,4.759]
[1625528476560,4.50917,2213.0,2211.6,0.9104]
[1625528476658,4.50917,2213.0,2211.1,4.759]
[1625528476758,1.0,2212.9,2211.1,4.759]
[1625528476958,2.20527,2212.5,2212.3,2.20527]
[1625528477059,4.36147,2212.5,2212.3,2.20527]
[1625528479319,2.20527,2213.0,2212.3,2.20527]
[1625528479718,2.20527,2213.0,2212.4,16.37224]
[1625528481036,2.20527,2213.7,2212.9,4.41054]
[1625528481146,2.20527,2213.7,2212.9,6.71894]
[1625528481340,14.6018,2214.7,2212.9,6.71894]
[1625528481641,14.6018,2214.7,2213.4,41.125]
[1625528481744,14.6018,2214.7,2213.4,44.0552]
[1625528481942,14.2124,2217.7,2213.5,16.456076]
[1625528482044,5.0,2216.6,2213.5,17.350776]
[1625528482143,1.0,2216.5,2213.5,16.456076]
[1625528482243,15.212,2216.0,2213.5,16.456076]
[1625528482996,2.20527,2215.0,2214.8,2.20527]
[1625528483149,2.20527,2215.0,2214.8,5.72407]
[1625528485148,2.20527,2215.2,2214.8,5.72407]
[1625528487103,2.20527,2215.2,2215.1,2.20527]
[1625528487404,5.37647,2215.2,2213.9,0.9006]
[1625528487504,5.37647,2215.2,2213.4,42.0365]
[1625528487604,6.37647,2215.2,2213.5,19.084]
[1625528487907,5.37647,2215.2,2213.5,19.084]
[1625528488105,5.37647,2215.2,2213.6,16.312875]
[1625528488807,2.20527,2215.2,2213.6,16.312875]
[1625528489107,2.20527,2215.2,2214.9,2.20527]
[1625528490562,2.20527,2215.2,2213.5,22.7238]
[1625528490662,1.0,2215.1,2213.5,19.084]
[1625528490962,1.0,2215.1,2213.5,4.759]
[1625528491062,2.20527,2215.2,2214.7,2.20527]
[1625528493063,2.20527,2214.8,2214.7,2.20527]
[1625528493164,5.38157,2214.8,2214.4,2.20527]
[1625528494507,3.1763,2214.8,2214.4,2.20527]
[1625528494598,2.20527,2215.2,2213.5,18.8997]
[1625528494699,1.0,2215.1,2213.5,18.8997]
[1625528495051,2.20527,2214.0,2213.9,2.20527]
[1625528495151,5.33757,2214.0,2213.9,2.20527]
[1625528495604,5.33757,2214.0,2213.0,19.6108]
[1625528496302,5.33757,2214.0,2213.1,16.307556]
[1625528496402,3.1323,2214.0,2213.1,16.307556]
[1625528496504,1.0,2215.0,2213.1,16.307556]
[1625528496605,1.0,2215.0,2213.1,19.387256]
[1625528497106,2.20527,2214.6,2214.4,2.20527]
[1625528497410,2.20527,2214.9,2214.4,2.20527]
[1625528498263,2.20527,2214.9,2213.1,1.0]
[1625528498366,3.20527,2214.9,2213.0,19.6108]
[1625528498612,3.20527,2214.9,2213.0,14.8518]
[1625528499115,2.20527,2213.5,2213.4,2.20527]
[1625528499315,5.12677,2213.5,2213.4,2.20527]
[1625528499570,5.12677,2213.5,2213.0,14.8518]
[1625528501172,2.9215,2213.5,2213.4,2.20527]
[1625528501472,2.9215,2213.5,2213.0,14.8518]
[1625528503186,5.12677,2213.5,2213.0,14.8518]
[1625528504894,2.20527,2213.5,2213.0,14.8518]
[1625528505194,2.20527,2213.5,2213.4,4.41054]
[1625528505499,2.20527,2213.5,2212.4,3.4392]
[1625528505599,5.23597,2213.5,2212.4,3.4392]
[1625528505848,5.23597,2213.5,2211.3,14.6826]
[1625528505948,1.0,2213.4,2211.3,14.6826]
[1625528506050,1.0,2213.4,2211.4,14.3077]
[1625528506750,1.0,2213.4,2211.5,16.537715]
[1625528507149,2.20527,2212.4,2212.3,2.20527]
[1625528507251,5.19057,2212.4,2212.3,2.20527]
[1625528508606,5.19057,2212.4,2211.3,14.6826]
[1625528509159,2.20527,2211.5,2211.4,2.20527]
[1625528510962,3.2072,2211.9,2211.4,2.20527]
[1625528511167,2.20527,2211.8,2211.7,2.20527]
[1625528512369,1.0,2213.4,2211.7,2.20527]
[1625528512470,2.9109,2212.7,2211.7,2.20527]
[1625528513171,2.20527,2212.5,2212.3,2.20527]
[1625528513521,2.20527,2212.5,2211.7,2.20527]
[1625528513622,5.06487,2212.5,2211.7,2.20527]
[1625528515072,2.20527,2212.5,2211.7,2.20527]
[1625528515172,2.20527,2212.5,2212.3,2.20527]
[1625528515828,40.2211,2213.9,2212.3,2.20527]
[1625528516582,3.96265342,2217.2,2212.3,2.20527]
[1625528516684,3.22125964,2217.2,2212.3,2.20527]
[1625528516983,5.0,2214.5,2212.3,2.20527]
[1625528517083,1.0,2214.4,2212.3,2.20527]
[1625528517197,1.0,2214.4,2213.0,2.20527]
[1625528517282,2.20527,2213.1,2213.0,4.59537]
[1625528517433,5.0,2214.5,2213.0,4.59537]
[1625528518386,1.0,2215.1,2213.0,4.59537]
[1625528518484,5.0,2215.0,2213.0,4.59537]
[1625528518685,15.1561,2215.6,2213.0,4.59537]
[1625528519087,1.0,2215.5,2213.0,4.59537]
[1625528519286,2.20527,2214.0,2213.8,2.20527]
[1625528521243,4.41054,2214.0,2213.8,2.20527]
[1625528523009,2.20527,2214.0,2213.8,2.20527]
[1625528527285,2.20527,2214.0,2213.6,5.04787]
[1625528527483,2.20527,2214.0,2213.6,2.8426]
[1625528528389,2.20527,2214.0,2212.5,15.1165]
[1625528529301,2.20527,2213.2,2213.1,2.20527]
[1625528529389,5.22227,2213.2,2213.1,2.20527]
[1625528531294,7.42754,2213.2,2213.1,2.20527]
[1625528533112,7.42754,2213.2,2211.4,1.0]
[1625528533211,7.42754,2213.2,2211.5,0.20179627]
[1625528533311,7.42754,2213.2,2212.0,2.20527]
[1625528533312,2.20527,2212.1,2212.0,2.20527]
[1625528533412,2.20527,2212.1,2212.0,2.40710057]
[1625528533613,2.20527,2212.1,2212.0,2.20527]
[1625528534471,2.20527,2212.1,2211.7,2.20527]
[1625528535221,3.4804,2212.5,2211.7,2.20527]
[1625528535321,2.20527,2212.2,2211.7,2.20527]
[1625528537326,2.20527,2211.8,2211.7,2.20527]
[1625528537428,5.67297,2211.8,2211.7,2.20527]
[1625528541346,5.67297,2211.8,2211.7,4.41054]
[1625528542297,2.20527,2211.8,2211.7,4.41054]
[1625528542399,44.3222,2212.8,2211.7,4.41054]
[1625528542497,43.3222,2212.8,2211.7,4.41054]
[1625528543098,15.1641,2213.1,2211.7,4.41054]
[1625528543199,15.1641,2213.1,2211.7,7.63084]
[1625528543401,2.20527,2212.3,2212.2,2.20527]
[1625528544004,15.1641,2213.1,2212.2,2.20527]
[1625528544301,1.0,2213.9,2212.2,2.20527]
[1625528544406,5.0,2214.0,2212.2,2.20527]
[1625528545503,2.20527,2212.7,2212.6,2.20527]
[1625528545804,2.20527,2212.7,2212.2,2.20527]
[1625528545903,5.60947,2212.7,2212.2,2.20527]
[1625528547503,2.20527,2212.3,2212.2,2.20527]
[1625528550473,2.20527,2212.7,2212.2,2.20527]
[1625528551376,2.20527,2212.7,2212.2,5.27897]
[1625528551477,4.41054,2212.7,2212.6,2.20527]
[1625528553681,1.0,2213.8,2212.6,2.20527]
[1625528553783,5.0,2214.5,2212.6,2.20527]
[1625528553882,1.0,2214.4,2212.6,2.20527]
[1625528554186,2.51266527,2215.0,2212.6,2.20527]
[1625528554437,5.0,2215.0,2212.6,2.20527]
[1625528554734,20.2955,2214.6,2212.6,2.20527]
[1625528554935,21.2955,2214.6,2212.6,2.20527]
[1625528555486,2.20527,2213.4,2213.3,2.20527]
[1625528557798,2.20527,2213.4,2212.9,2.632]
[1625528557893,2.20527,2213.4,2212.2,3.0737]
[1625528557994,2.20527,2213.4,2212.1,19.8801]
[1625528558096,2.20527,2213.4,2212.3,0.20256433]
[1625528558399,2.20527,2213.4,2212.1,19.8801]
[1625528558650,2.20527,2213.4,2212.1,15.1211]
[1625528558751,2.20527,2213.4,2212.2,0.20256497]
[1625528559502,2.20527,2213.4,2213.0,2.20527]
[1625528561512,2.20527,2213.1,2213.0,2.20527]
[1625528564134,2.20527,2213.1,2212.8,2.20527]
[1625528564233,5.54547,2213.1,2212.1,55.0241]
[1625528564434,5.54547,2213.1,2212.2,0.20278761]
[1625528565637,4.89687,2212.6,2212.5,2.20527]
[1625528566088,4.89687,2212.6,2212.1,15.1211]
[1625528566186,4.89687,2212.6,2211.5,4.759]
[1625528566287,56.9021,2212.5,2211.5,4.759]
[1625528566389,56.9021,2212.5,2211.6,0.20288069]
[1625528566989,56.9021,2212.5,2211.2,0.20290123]
[1625528567187,56.9021,2212.5,2211.1,14.3802]
[1625528567388,56.9021,2212.5,2211.2,0.20293673]
[1625528567590,2.20527,2211.8,2211.7,2.20527]
[1625528567688,5.67487,2211.8,2211.7,2.20527]
[1625528569577,5.67487,2211.8,2210.3,14.43]
[1625528569657,7.88014,2211.8,2211.1,2.20527]
[1625528569860,7.88014,2211.8,2211.2,0.20281416]
[1625528571226,7.88014,2211.8,2211.1,2.20527]
[1625528571628,2.20527,2211.2,2211.1,2.20527]
[1625528571830,2.20527,2211.2,2211.1,2.40802338]
[1625528572281,1.0,2212.4,2211.1,2.40802338]
[1625528572381,56.9021,2212.5,2211.1,5.69327]
[1625528573233,61.9021,2212.5,2211.1,5.69327]
[1625528573432,56.9021,2212.5,2211.1,5.69327]
[1625528573582,2.20527,2211.4,2211.1,5.69327]
[1625528574283,5.55937,2211.4,2211.1,2.20527]
[1625528575642,2.20527,2211.2,2211.1,2.20527]
[1625528577143,5.07047,2211.2,2211.1,2.20527]
[1625528578445,2.20527,2211.2,2211.1,2.20527]
[1625528578844,2.20527,2211.2,2211.1,3.10317]
[1625528578946,2.20527,2211.2,2211.1,2.20527]
[1625528580599,2.20527,2211.4,2211.1,2.20527]
[1625528580700,1.0,2212.4,2211.1,5.66027]
[1625528580799,4.0188841,2214.1,2211.1,5.66027]
[1625528580902,2.51294212,2213.8,2211.1,5.66027]
[1625528581000,5.0,2213.4,2211.1,5.66027]
[1625528581397,2.51294212,2213.8,2211.1,5.66027]
[1625528581602,2.51294212,2213.8,2211.2,0.20224848]
[1625528581699,2.20527,2212.4,2212.3,2.20527]
[1625528581800,2.20527,2212.4,2212.3,5.41057]
[1625528587960,1.0,2213.5,2212.3,5.41057]
[1625528588061,16.40087403,2214.0,2212.3,5.41057]
[1625528588161,1.0,2213.9,2212.3,5.41057]
[1625528589713,2.20527,2213.1,2213.0,2.20527]
[1625528591715,4.41054,2213.1,2213.0,2.20527]
[1625528592869,4.41054,2213.1,2211.8,4.759]
[1625528593624,44.702,2212.6,2211.4,14.6292]
[1625528593737,2.20527,2212.3,2212.2,2.20527]
[1625528593832,2.20527,2212.3,2211.9,2.20527]
[1625528594035,2.20527,2212.3,2210.7,54.6917]
[1625528594434,2.20527,2212.3,2211.3,0.66947527]
[1625528595737,2.20527,2212.0,2211.8,2.20527]
[1625528596440,5.24627,2212.0,2211.8,2.20527]
[1625528597593,2.20527,2212.0,2211.8,2.20527]
[1625528598302,1.0,2213.1,2211.8,2.20527]
[1625528598506,1.76769094,2213.4,2211.8,4.60897]
[1625528598617,1.76881195,2213.7,2211.8,4.60897]
[1625528598703,1.76881195,2213.7,2211.9,42.3358]
[1625528599258,3.97673852,2213.6,2211.9,42.3358]
[1625528599778,2.20527,2212.2,2211.9,42.3358]
[1625528599876,2.20527,2212.2,2211.8,2.20527]
[1625528600480,4.83727,2212.2,2211.8,2.20527]
[1625528601786,2.20527,2211.9,2211.8,2.20527]
[1625528602688,5.46077,2211.9,2211.8,2.20527]
[1625528604343,2.20527,2211.9,2211.8,2.20527]
[1625528606896,2.20527,2212.2,2211.8,2.20527]
[1625528607847,2.20527,2211.9,2211.8,2.20527]
[1625528607947,5.65727,2211.9,2211.8,2.20527]
[1625528609474,5.65727,2211.9,2211.2,15.2853]
[1625528609851,4.41054,2211.3,2211.2,15.2853]
[1625528609950,6.83284,2211.3,2211.1,2.20527]
[1625528612558,6.83284,2211.3,2211.2,0.66959915]
[1625528613810,4.41054,2211.3,2211.2,0.66959915]
[1625528614167,2.20527,2211.3,2211.2,0.66959915]
[1625528615860,4.41054,2211.3,2211.2,0.66959915]
[1625528615961,4.41054,2211.3,2210.9,2.20527]
[1625528616314,4.41054,2211.3,2211.0,0.66958751]
[1625528616462,2.20527,2211.3,2211.0,0.66958751]
[1625528617914,2.20527,2211.2,2211.0,0.66958751]
[1625528618016,2.20527,2211.3,2211.0,0.66958751]
[1625528618123,1.0,2212.2,2211.0,0.66958751]
[1625528618224,1.0,2212.2,2211.0,3.47058751]
[1625528618318,40.27610025,2212.8,2211.0,3.47058751]
[1625528618414,1.0,2212.7,2211.0,3.47058751]
[1625528618514,1.0,2212.7,2211.1,0.6695502]
[1625528619818,6.0,2212.7,2211.1,0.6695502]
[1625528619924,4.41054,2211.2,2211.1,0.6695502]
[1625528620020,4.41054,2211.2,2211.0,0.66956681]
[1625528620425,4.41054,2211.2,2210.8,0.66958747]
[1625528621220,4.41054,2211.2,2210.0,2.7137043]
[1625528621775,4.41054,2211.2,2210.1,0.20314477]
[1625528621876,2.20527,2210.5,2210.4,2.20527]
[1625528621978,5.76117,2210.5,2210.4,2.20527]
[1625528622276,5.76117,2210.5,2210.4,2.87505473]
[1625528623891,7.96644,2210.5,2210.4,2.87505473]
[1625528624539,7.96644,2210.5,2210.4,0.66978473]
[1625528624940,7.96644,2210.5,2210.3,0.66979112]
[1625528627554,2.20527,2210.5,2210.3,0.66979112]
[1625528627956,2.20527,2210.8,2210.4,2.40818789]
[1625528628056,2.20527,2210.8,2210.4,4.88018789]
[1625528628156,2.20527,2210.8,2210.5,0.20291714]
[1625528628256,2.20527,2210.8,2210.5,0.8726144]
[1625528628409,2.20527,2210.8,2210.5,0.66969726]
[1625528628658,2.20527,2210.8,2210.5,2.00909322]
[1625528628862,2.20527,2211.0,2210.5,2.00909322]
[1625528628962,2.20527,2211.0,2210.6,0.20290874]
[1625528630014,2.20527,2211.0,2210.9,4.41054]
[1625528630464,2.20527,2211.0,2210.9,5.0802058]
[1625528633733,1.0,2211.9,2210.9,5.0802058]
[1625528633834,1.76207274,2212.8,2210.9,8.5543058]
[1625528633934,1.0,2212.7,2210.9,8.5543058]
[1625528634033,2.20527,2212.4,2212.3,4.55187]
[1625528635194,2.20527,2212.4,2212.3,2.3466]
[1625528635295,3.20527,2212.4,2210.8,17.70692913]
[1625528635594,3.20527,2212.4,2210.9,0.20280638]
[1625528635696,3.20527,2212.4,2210.9,2.21149837]
[1625528635894,3.20527,2212.4,2210.9,2.00869199]
[1625528635998,2.20527,2211.8,2211.7,2.20527]
[1625528636595,5.55437,2211.8,2211.7,2.20527]
[1625528636798,5.55437,2211.8,2210.8,15.0465]
[1625528637301,51.11407,2211.8,2210.8,15.0465]
[1625528638003,2.20527,2211.1,2211.0,2.20527]
[1625528638104,4.82337,2211.1,2211.0,2.20527]
[1625528639556,2.6181,2211.1,2211.0,2.20527]
[1625528639905,49.9088,2211.8,2211.0,2.20527]
[1625528640004,49.9088,2211.8,2211.3,2.20527]
[1625528640005,2.20527,2211.4,2211.3,2.20527]
[1625528640606,1.0,2212.6,2211.3,2.20527]
[1625528640708,1.76143714,2212.7,2211.3,2.20527]
[1625528640808,44.4704,2213.4,2211.3,2.20527]
[1625528640809,1.7626825,2212.9,2211.3,2.20527]
[1625528641109,2.7626825,2212.9,2211.3,2.20527]
[1625528641212,1.0,2212.9,2211.3,2.20527]
[1625528641460,2.76250418,2212.9,2211.3,2.20527]
[1625528642063,2.20527,2211.8,2211.7,2.20527]
[1625528643917,1.76285497,2213.0,2211.7,2.20527]
[1625528644017,14.9988,2213.1,2211.7,2.20527]
[1625528644117,2.20527,2212.5,2212.3,2.20527]
[1625528644318,2.20527,2212.5,2211.7,2.20527]
[1625528646095,2.20527,2212.5,2212.4,2.20527]
[1625528646446,2.20527,2212.8,2212.4,2.20527]
[1625528648148,2.20527,2212.8,2212.7,2.20527]
[1625528648449,2.20527,2212.8,2212.7,4.49017]
[1625528648700,2.20527,2213.0,2212.7,4.49017]
[1625528648901,2.20527,2213.0,2212.8,40.6455]
[1625528650155,2.20527,2213.0,2212.9,2.20527]
[1625528653060,1.0,2213.7,2212.9,2.20527]
[1625528653159,6.0249576,2213.9,2212.9,2.20527]
[1625528653461,1.26611113,2213.8,2212.9,2.20527]
[1625528654113,2.20527,2213.6,2213.4,2.20527]
[1625528656164,4.41054,2213.6,2213.4,2.20527]
[1625528660228,4.41054,2213.6,2213.5,4.35337]
[1625528661025,4.41054,2213.6,2213.5,2.1481]
[1625528662480,4.41054,2213.6,2213.4,2.20527]
[1625528663383,4.41054,2213.6,2212.8,40.6455]
[1625528664186,2.20527,2213.2,2213.0,2.20527]
[1625528665748,2.20527,2213.2,2212.8,2.20527]
[1625528666189,2.20527,2212.9,2212.8,2.20527]
[1625528666643,2.3538,2213.7,2212.8,2.20527]
[1625528666741,1.26378213,2213.8,2212.8,2.20527]
[1625528667945,1.26306331,2213.7,2212.8,2.20527]
[1625528668244,2.20527,2212.9,2212.8,2.20527]
[1625528674119,1.0,2213.6,2212.8,2.20527]
[1625528674217,1.26306331,2213.7,2213.4,2.20527]
[1625528674218,2.20527,2213.5,2213.4,2.20527]
[1625528676271,4.41054,2213.5,2213.4,2.20527]
[1625528676970,54.66804,2213.5,2213.4,2.20527]
[1625528679127,54.66804,2213.5,2212.8,2.20527]
[1625528680232,4.41054,2212.9,2212.5,2.20527]
[1625528680332,7.30784,2212.9,2211.6,14.583]
[1625528681037,56.2434,2212.5,2211.6,14.583]
[1625528682339,2.20527,2212.2,2212.1,2.20527]
[1625528685409,2.20527,2212.2,2211.9,2.20527]
[1625528686261,2.20527,2212.2,2211.9,4.41054]
[1625528688619,2.20527,2212.2,2211.6,14.583]
[1625528688719,5.42567,2212.2,2211.6,14.583]
[1625528688917,5.42567,2212.2,2210.9,14.2709]
[1625528689417,5.42567,2212.2,2210.4,1.32980446]
[1625528689520,41.4079,2211.4,2210.3,19.5148]
[1625528689646,43.5777,2211.4,2210.3,19.5148]
[1625528689736,43.5777,2211.4,2210.4,0.20298226]
[1625528689939,43.5777,2211.4,2210.3,14.7558]
[1625528690041,43.5777,2211.4,2210.4,0.66979275]
[1625528690339,2.20527,2211.3,2211.2,2.20527]
[1625528692389,4.41054,2211.3,2211.2,2.20527]
[1625528694493,4.41054,2211.3,2210.9,2.20527]
[1625528694694,4.41054,2211.3,2210.0,0.05]
[1625528696445,4.41054,2210.1,2210.0,2.25527]
[1625528697198,6.0,2211.3,2210.0,2.25527]
[1625528697347,6.25916386,2211.8,2210.0,4.56937]
[1625528697561,1.0,2211.7,2210.0,4.56937]
[1625528697847,54.9093,2211.2,2210.0,4.56937]
[1625528697952,5.0,2211.1,2210.0,2.3641]
[1625528698164,5.0,2211.1,2210.0,0.5305]
[1625528698278,1.0,2211.0,2208.7,6.08835808]
[1625528698401,2.20527,2208.9,2208.8,2.40814982]
[1625528698647,56.59847,2208.9,2208.8,2.20527]
[1625528700152,56.59847,2208.9,2207.9,14.0582]
[1625528700253,59.25937,2208.9,2207.9,14.0582]
[1625528700352,59.25937,2208.9,2208.0,0.20248535]
[1625528700455,2.20527,2208.4,2208.3,2.20527]
[1625528701965,2.20527,2208.4,2208.3,2.87557457]
[1625528702166,1.0,2209.1,2208.3,2.87557457]
[1625528702265,67.9792,2209.7,2208.3,6.10577457]
[1625528702667,1.0,2209.6,2208.3,6.10577457]
[1625528702768,1.0,2209.6,2208.3,5.43547]
[1625528704218,68.9792,2209.7,2208.3,5.43547]
[1625528704320,67.9792,2209.7,2208.3,5.43547]
[1625528704421,2.20527,2209.0,2208.7,2.20527]
[1625528706475,2.20527,2209.0,2208.7,4.41054]
[1625528707484,14.4069,2209.9,2208.7,4.41054]
[1625528707580,14.4069,2209.9,2208.7,7.88184]
[1625528707781,5.0,2211.1,2208.7,7.88184]
[1625528708486,2.20527,2210.0,2209.9,2.20527]
[1625528708584,7.20527,2210.0,2208.3,1.0]
[1625528708685,1.0,2209.9,2208.1,14.1485]
[1625528709087,45.5328,2208.8,2208.1,14.1485]
[1625528710291,45.5328,2208.8,2206.8,5.759]
[1625528710392,45.5328,2208.8,2206.8,19.1886]
[1625528710490,2.20527,2208.4,2208.3,2.20527]
[1625528712494,4.41054,2208.4,2208.3,2.20527]
[1625528712895,45.5328,2208.8,2208.3,2.20527]
[1625528713013,1.0,2209.7,2208.3,4.83167]
[1625528713100,14.5333,2209.9,2208.3,4.83167]
[1625528714256,15.5333,2209.9,2208.3,4.83167]
[1625528714524,4.41054,2208.4,2208.3,4.83167]
[1625528714617,4.41054,2208.4,2208.3,2.20527]
[1625528714707,3.1642,2209.1,2208.3,2.20527]
[1625528714856,2.1642,2209.1,2208.3,2.20527]
[1625528715708,1.0,2209.8,2208.3,2.20527]
[1625528716010,14.5333,2209.9,2208.3,2.20527]
[1625528716460,15.5333,2209.9,2208.3,2.20527]
[1625528716560,15.5333,2209.9,2208.9,2.20527]
[1625528716561,2.20527,2209.0,2208.9,2.20527]
[1625528717311,2.20527,2209.0,2208.6,2.2501]
[1625528717972,2.20527,2209.0,2208.3,2.20527]
[1625528718572,2.20527,2209.0,2208.7,2.20527]
[1625528719175,1.0,2209.8,2208.7,2.20527]
[1625528719275,14.5333,2209.9,2208.7,2.20527]
[1625528719479,69.0879,2212.0,2208.7,2.20527]
[1625528719691,5.0,2211.7,2208.7,2.20527]
[1625528719789,14.2401,2211.5,2208.7,2.20527]
[1625528719886,1.0,2211.1,2208.7,2.20527]
[1625528720191,1.0,2211.1,2208.8,16.526335]
[1625528720638,2.20527,2209.9,2209.8,4.36477]
[1625528721346,2.20527,2209.9,2209.8,2.1595]
[1625528721742,2.20527,2209.9,2209.6,2.20527]
[1625528722396,2.20527,2209.9,2208.5,14.9164]
[1625528722594,2.9539,2210.3,2208.5,14.9164]
[1625528722595,2.20527,2209.2,2208.5,14.9164]
[1625528722796,2.9539,2210.3,2208.5,17.4568]
[1625528723751,1.0,2210.2,2208.5,17.4568]
[1625528723856,3.2251,2211.4,2208.5,17.4568]
[1625528724101,5.0,2211.2,2208.5,17.4568]
[1625528724202,5.0,2210.9,2208.5,17.4568]
[1625528724317,7.7662,2210.9,2208.5,17.4568]
[1625528724554,2.20527,2209.4,2209.3,2.20527]
[1625528726568,4.41054,2209.4,2209.3,2.20527]
[1625528728062,4.41054,2209.4,2209.0,2.20527]
[1625528728563,4.41054,2209.4,2209.3,2.20527]
[1625528733538,4.41054,2209.4,2209.0,5.08727]
[1625528733640,4.41054,2209.4,2209.0,2.20527]
[1625528734540,40.9614,2210.0,2209.0,2.20527]
[1625528734654,2.20527,2209.6,2209.4,2.20527]
[1625528736605,2.20527,2209.6,2209.5,2.20527]
[1625528737206,2.20527,2209.6,2209.5,5.47177]
[1625528740365,2.20527,2209.8,2209.5,5.47177]
[1625528740669,2.20527,2209.8,2209.7,2.20527]
[1625528740970,2.20527,2210.2,2209.7,2.20527]
[1625528741066,14.4821,2214.2,2209.7,2.20527]
[1625528741177,4.759,2212.3,2209.7,2.20527]
[1625528741277,4.759,2212.3,2209.8,5.0]
[1625528741392,3.328,2212.3,2209.8,5.0]
[1625528741577,3.328,2212.3,2210.2,1.15]
[1625528741690,13.8567,2212.7,2211.1,42.3767]
[1625528741772,13.8567,2212.7,2211.1,45.9261]
[1625528742168,14.8567,2212.7,2211.1,45.9261]
[1625528742671,2.20527,2212.5,2212.4,2.20527]
[1625528742770,52.9346,2213.4,2212.4,4.58077]
[1625528743171,52.9346,2213.4,2212.4,3.5090944]
[1625528744635,2.20527,2212.9,2212.7,2.20527]
[1625528745636,1.0,2213.9,2212.7,2.20527]
[1625528745735,14.8796,2214.0,2212.7,2.20527]
[1625528745936,1.0,2214.4,2212.7,2.20527]
[1625528746688,2.20527,2213.1,2213.0,2.20527]
[1625528747491,1.0,2214.3,2213.0,2.20527]
[1625528747588,8.3648,2214.6,2213.0,4.45107]
[1625528747589,5.0,2214.6,2213.0,4.45107]
[1625528748140,54.308,2214.7,2213.0,4.45107]
[1625528748693,2.20527,2213.8,2213.7,2.20527]
[1625528750699,4.41054,2213.8,2213.7,2.20527]
[1625528752365,2.20527,2213.8,2213.7,2.20527]
[1625528753021,2.20527,2213.8,2213.5,2.20527]
[1625528753117,4.43177,2213.8,2213.5,2.20527]
[1625528753419,55.7368,2213.6,2213.5,2.20527]
[1625528754077,4.43177,2213.8,2213.5,2.20527]
[1625528754377,2.20527,2213.8,2213.5,2.20527]
[1625528754725,2.20527,2213.8,2213.5,4.41054]
[1625528756730,2.20527,2213.6,2213.5,4.41054]
[1625528756830,4.55867,2213.6,2212.1,13.9493]
[1625528756931,5.55867,2213.6,2212.1,13.9493]
[1625528757350,53.1703,2213.4,2212.1,13.9493]
[1625528757803,53.1703,2213.4,2211.1,42.3767]
[1625528757898,1.0,2213.3,2211.1,42.3767]
[1625528758449,1.0,2213.3,2211.3,16.427739]
[1625528758752,2.20527,2212.8,2212.7,2.20527]
[1625528758850,4.70767,2212.8,2212.7,2.20527]
[1625528759803,1.0,2214.0,2212.7,2.20527]
[1625528759904,14.0036,2214.1,2212.7,5.34917]
[1625528760102,2.75532946,2214.4,2212.7,5.34917]
[1625528760206,1.75532946,2214.4,2212.7,5.34917]
[1625528760355,6.2548763,2214.6,2212.7,5.34917]
[1625528760451,1.2548763,2214.6,2212.7,5.34917]
[1625528760752,2.20527,2213.5,2213.4,2.20527]
[1625528761054,2.20527,2213.5,2213.4,1.13401769]
[1625528761452,2.20527,2213.5,2212.7,3.1439]
[1625528762062,2.20527,2213.5,2212.1,47.5542]
[1625528762454,2.20527,2213.5,2211.4,14.5613]
[1625528762557,6.67467,2213.5,2211.4,14.5613]
[1625528762756,2.20527,2212.5,2212.4,2.20527]
[1625528763606,44.4963,2213.1,2212.4,2.20527]
[1625528764757,2.20527,2212.5,2212.4,2.20527]
[1625528767664,44.4963,2213.1,2212.4,2.20527]
[1625528768872,2.20527,2213.0,2212.8,2.20527]
[1625528770868,2.20527,2212.9,2212.8,2.20527]
[1625528774077,2.20527,2213.0,2212.8,2.20527]